bitfinex-derivatives/quotes_SOLF0:USTF0_20250603
["timestamp","ask_amount","ask_price","bid_price","bid_amount"]
[1748992916662,46.37144254,155.54,155.53,0.04394935]
[1748992917060,6.426,155.51,155.5,6.00614264]
[1748992917467,7.42664254,155.52,155.49,6.00614264]
[1748992917669,6.426,155.51,155.49,6.00614264]
[1748992918068,6.426,155.51,155.49,6.00422139]
[1748992918369,6.426,155.51,155.5,6.00422139]
[1748992919472,6.426,155.51,155.49,6.00422139]
[1748992919766,6.426,155.51,155.48,0.04735052]
[1748992919767,6.426,155.51,155.5,6.00275736]
[1748992920463,6.426,155.51,155.49,6.00275736]
[1748992920969,6.426,155.51,155.49,12.42955736]
[1748992921470,6.426,155.51,155.49,6.00275736]
[1748992922069,6.426,155.51,155.49,12.42935736]
[1748992922269,6.426,155.51,155.49,6.00168712]
[1748992922473,6.4264,155.5,155.49,6.00168712]
[1748992922667,7.47366586,155.52,155.48,6.04903764]
[1748992923667,7.47366586,155.52,155.48,12.47623764]
[1748992924064,6.4261,155.51,155.48,12.47623764]
[1748992924372,0.04702332,155.52,155.49,12.42838712]
[1748992924571,0.04702332,155.52,155.49,6.00168712]
[1748992924572,6.47282332,155.52,155.49,6.00168712]
[1748992924777,0.04702332,155.52,155.5,6.4261]
[1748992925270,0.04702332,155.52,155.51,6.426]
[1748992925466,0.04702332,155.52,155.51,12.42768712]
[1748992925971,0.04702332,155.52,155.51,6.426]
[1748992927477,39.94664254,155.57,155.53,6.425]
[1748992927770,36.7036,155.6,155.53,5.99854358]
[1748992927977,42.06954254,155.6,155.55,6.4243]
[1748992928271,6.4229,155.59,155.55,5.99854358]
[1748992928568,0.04692221,155.59,155.55,6.0451216]
[1748992928970,7.42664254,155.58,155.55,0.04657802]
[1748992929364,13.84994254,155.58,155.55,0.04657802]
[1748992929567,6.4233,155.58,155.55,0.04657802]
[1748992929771,6.4233,155.58,155.55,6.47067802]
[1748992931267,6.46972221,155.59,155.55,0.04657802]
[1748992931674,6.46972221,155.59,155.56,6.4237]
[1748992932375,6.4233,155.58,155.56,6.4237]
[1748992935976,6.46982221,155.59,155.56,6.4237]
[1748992936377,0.04692221,155.59,155.57,6.4234]
[1748992937468,6.46962221,155.59,155.57,6.4234]
[1748992937873,6.46962221,155.59,155.56,12.42153159]
[1748992938472,6.46962221,155.59,155.57,6.4234]
[1748992938674,0.04692221,155.59,155.56,5.99783159]
[1748992939077,0.04692221,155.59,155.57,6.4235]
[1748992941081,0.04692221,155.59,155.56,5.99783159]
[1748992941878,0.04692221,155.59,155.57,6.4233]
[1748992942876,6.46962221,155.59,155.56,12.41822712]
[1748992943388,6.46962221,155.59,155.57,6.4235]
[1748992943587,0.04692221,155.59,155.56,5.99452712]
[1748992943789,0.04692221,155.59,155.57,5.99452712]
[1748992944981,0.04692221,155.59,155.58,6.4231]
[1748992946377,0.04692221,155.59,155.57,12.41478644]
[1748992947488,0.04692221,155.59,155.58,6.4231]
[1748992948287,7.47356475,155.59,155.57,5.99001834]
[1748992948492,7.47356475,155.59,155.55,0.04657802]
[1748992948687,6.4239,155.56,155.55,0.04657802]
[1748992950180,7.42664254,155.57,155.51,5.99153734]
[1748992950381,7.42664254,155.54,155.5,5.99153734]
[1748992950589,7.42664254,155.54,155.49,5.99153734]
[1748992951180,0.04634729,155.53,155.5,6.03861517]
[1748992952095,6.4258,155.52,155.5,12.46501517]
[1748992952292,0.04634729,155.53,155.5,12.46501517]
[1748992952488,0.04634729,155.53,155.5,6.03861517]
[1748992952694,0.04634729,155.53,155.51,12.41723734]
[1748992952993,0.04634729,155.53,155.52,5.99153734]
[1748992953691,0.04634729,155.53,155.52,5.99032456]
[1748992954794,32.48,155.59,155.52,5.99032456]
[1748992955092,7.42664254,155.57,155.52,5.99032456]
[1748992955282,6.4246,155.55,155.52,12.41572456]
[1748992955587,7.42664254,155.57,155.52,5.99032456]
[1748992955789,6.46597038,155.56,155.53,6.47076482]
[1748992956180,6.46597038,155.56,155.53,0.04566482]
[1748992957196,6.46597038,155.56,155.53,6.47066482]
[1748992957389,6.46597038,155.56,155.53,0.04566482]
[1748992957892,0.04177038,155.56,155.54,6.4247]
[1748992958694,6.46577038,155.56,155.54,6.4247]
[1748992960299,0.04177038,155.56,155.54,6.4247]
[1748992961192,6.46597038,155.56,155.53,12.46108866]
[1748992961893,6.46597038,155.56,155.53,12.46196032]
[1748992962997,6.4246,155.55,155.53,0.04566482]
[1748992963292,0.04177038,155.56,155.53,0.04566482]
[1748992963495,6.4248,155.54,155.53,0.04566482]
[1748992966697,6.4245,155.55,155.53,0.04566482]
[1748992967501,6.4248,155.54,155.53,6.04035335]
[1748992968609,6.4248,155.54,155.53,0.04566482]
[1748992970305,6.4248,155.54,155.53,6.04569351]
[1748992973911,6.4248,155.54,155.53,0.04566482]
[1748992975214,6.4248,155.54,155.53,6.04569351]
[1748992975811,6.4248,155.54,155.53,0.04566482]
[1748992976510,0.04177038,155.56,155.53,0.04566482]
[1748992976511,6.4245,155.55,155.53,0.04566482]
[1748992976708,0.04177038,155.56,155.54,6.00002869]
[1748992976914,0.04177038,155.56,155.55,6.00002869]
[1748992978214,0.04177038,155.56,155.54,6.00002869]
[1748992978606,6.46587038,155.56,155.54,12.42462869]
[1748992979215,6.4243,155.55,155.53,14.47629334]
[1748992979417,6.4243,155.55,155.54,5.99980508]
[1748992980215,6.4243,155.55,155.53,12.4704699]
[1748992981014,6.4243,155.55,155.53,12.47060478]
[1748992981618,6.46587038,155.56,155.53,12.47060478]
[1748992982116,6.46587038,155.56,155.54,12.42463996]
[1748992986616,6.46587038,155.56,155.54,5.99993996]
[1748992986922,6.4243,155.55,155.54,5.99993996]
[1748992987115,0.04177038,155.56,155.54,5.99993996]
[1748992987419,0.04177038,155.56,155.54,12.42453996]
[1748992987623,6.46587038,155.56,155.54,12.42453996]
[1748992988819,0.04177038,155.56,155.55,6.4243]
[1748992989023,0.04177038,155.56,155.55,12.42423996]
[1748992989213,0.04177038,155.56,155.55,5.99993996]
[1748992989922,6.46567038,155.56,155.55,5.99993996]
[1748992991923,6.4243,155.55,155.54,5.99993996]
[1748992992418,6.4248,155.54,155.53,6.05612577]
[1748992992724,7.42664254,155.55,155.51,6.01112153]
[1748992992923,13.85224254,155.52,155.51,6.01112153]
[1748992993420,13.85224254,155.52,155.48,8.00562852]
[1748992993421,7.42664254,155.52,155.48,8.00562852]
[1748992993611,7.47262525,155.52,155.48,8.05044293]
[1748992993816,7.47262525,155.52,155.48,0.04481441]
[1748992994016,39.87262525,155.52,155.48,0.04481441]
[1748992995423,6.4263,155.51,155.48,0.04481441]
[1748992996019,6.4263,155.51,155.48,6.47181441]
[1748992996415,4.97895643,155.5,155.48,6.47181441]
[1748992996622,6.4263,155.51,155.48,6.47181441]
[1748992997526,4.9450175,155.5,155.48,6.47181441]
[1748992997717,6.4263,155.51,155.48,6.47181441]
[1748992997923,4.95018709,155.5,155.48,6.47181441]
[1748992998119,6.4263,155.51,155.48,6.47181441]
[1748992998323,4.95018061,155.5,155.49,6.4268]
[1748992998720,4.95018061,155.5,155.48,0.04481441]
[1748992998921,4.95021144,155.49,155.48,6.47181441]
[1748992999130,6.4265,155.5,155.48,6.47181441]
[1748992999919,4.95021678,155.49,155.48,6.47181441]
[1748993000119,6.4261,155.51,155.48,6.47181441]
[1748993000318,4.95017055,155.5,155.48,6.47181441]
[1748993000526,6.4261,155.51,155.48,6.47181441]
[1748993001222,4.9498337,155.5,155.48,6.47181441]
[1748993001418,7.47262525,155.52,155.48,6.47181441]
[1748993001619,6.4264,155.5,155.48,0.04481441]
[1748993001820,4.9474243,155.49,155.48,0.04481441]
[1748993002319,7.47262525,155.52,155.48,0.04481441]
[1748993002720,6.4267,155.5,155.48,0.04481441]
[1748993003025,7.47262525,155.52,155.48,0.04481441]
[1748993003333,4.94729193,155.51,155.48,0.04481441]
[1748993003520,6.4268,155.49,155.48,0.04481441]
[1748993004634,11.3743327,155.49,155.48,0.04481441]
[1748993004833,6.4268,155.49,155.48,0.04481441]
[1748993005636,11.36595241,155.49,155.48,0.04481441]
[1748993005834,6.4268,155.49,155.48,0.04481441]
[1748993006134,32.42,155.49,155.42,8.00562852]
[1748993006331,7.42664254,155.44,155.39,8.00562852]
[1748993006533,6.43,155.42,155.39,14.43642852]
[1748993006932,4.93018372,155.41,155.39,14.47911241]
[1748993007148,4.92991248,155.4,155.39,6.47348389]
[1748993007345,0.04614932,155.42,155.39,6.47348389]
[1748993007843,0.04614932,155.42,155.39,0.04268389]
[1748993008246,4.92681894,155.41,155.39,0.04268389]
[1748993008444,4.92681893,155.4,155.39,6.47338389]
[1748993008642,0.04614932,155.42,155.39,6.47338389]
[1748993008841,4.92673254,155.41,155.39,6.47338389]
[1748993009141,4.92666194,155.4,155.39,6.47338389]
[1748993009342,4.92666194,155.4,155.39,0.04268389]
[1748993009541,6.4304,155.41,155.39,0.04268389]
[1748993010046,6.4305,155.4,155.39,0.04268389]
[1748993010240,0.04614932,155.42,155.39,0.04268389]
[1748993010441,13.85714254,155.4,155.39,0.04268389]
[1748993010735,4.92515322,155.4,155.39,0.04268389]
[1748993011146,2.1455,155.49,155.39,38.90268389]
[1748993011340,37.36729193,155.5,155.45,7.42664254]
[1748993011537,4.94729193,155.5,155.45,7.42664254]
[1748993012141,0.04506984,155.49,155.46,0.04392587]
[1748993012735,0.04506984,155.49,155.48,6.4272]
[1748993012942,0.04506984,155.49,155.46,0.04392587]
[1748993013737,0.04506984,155.49,155.47,6.4275]
[1748993013940,0.04506984,155.49,155.46,0.04392587]
[1748993013941,6.47196984,155.49,155.46,0.04392587]
[1748993014445,6.47196984,155.49,155.46,6.47172587]
[1748993014639,0.04506984,155.49,155.46,0.04392587]
[1748993015746,0.04506984,155.49,155.47,6.4277]
[1748993017043,6.47196984,155.49,155.46,6.47182587]
[1748993017546,6.47196984,155.49,155.46,0.04392587]
[1748993018541,0.04506984,155.49,155.46,0.04392587]
[1748993018745,0.04506984,155.49,155.47,7.42664254]
[1748993018942,0.04506984,155.49,155.47,39.84664254]
[1748993019144,4.94729193,155.5,155.47,39.84664254]
[1748993019352,4.94729193,155.5,155.49,7.42664254]
[1748993019939,4.94729193,155.5,155.49,13.85344254]
[1748993023650,9.67899312,155.5,155.49,13.85344254]
[1748993024151,9.67906555,155.5,155.49,13.85344254]
[1748993024350,4.94729193,155.5,155.49,13.85344254]
[1748993024850,9.70990729,155.5,155.49,13.85344254]
[1748993025052,4.94729193,155.5,155.49,13.85344254]
[1748993025247,9.70990729,155.5,155.49,13.85344254]
[1748993025551,9.70990525,155.5,155.49,6.4268]
[1748993025739,4.94729193,155.5,155.49,6.4268]
[1748993026754,9.71964286,155.5,155.49,6.4268]
[1748993027052,4.94729193,155.5,155.49,13.85344254]
[1748993027250,9.72079517,155.5,155.49,13.85344254]
[1748993027444,9.72126227,155.5,155.49,6.4268]
[1748993027648,4.94729193,155.5,155.49,6.4268]
[1748993027845,9.72259512,155.5,155.49,6.4268]
[1748993028152,4.94729193,155.5,155.49,6.4268]
[1748993028353,9.72270613,155.5,155.49,6.4268]
[1748993028548,4.94729193,155.5,155.49,6.4268]
[1748993029149,9.72171285,155.5,155.49,6.4268]
[1748993029358,4.94729193,155.5,155.49,6.4268]
[1748993030256,9.72178801,155.5,155.49,6.4268]
[1748993030448,4.94729193,155.5,155.49,6.4268]
[1748993031144,9.72200836,155.5,155.49,6.4268]
[1748993031348,4.94729193,155.5,155.49,6.4268]
[1748993031545,4.94729193,155.5,155.48,6.427]
[1748993031755,4.77436493,155.49,155.47,39.84664254]
[1748993031954,4.94729193,155.5,155.47,39.84664254]
[1748993032550,11.37399193,155.5,155.47,46.27404254]
[1748993032953,4.77849883,155.49,155.47,46.27404254]
[1748993033154,11.37399193,155.5,155.47,46.27404254]
[1748993033361,11.20528973,155.49,155.47,39.84664254]
[1748993033563,4.77796429,155.48,155.47,32.42]
[1748993033757,6.4268,155.49,155.47,32.42]
[1748993034063,4.7779643,155.48,155.47,32.42]
[1748993034363,6.4268,155.49,155.47,32.42]
[1748993035062,4.77790619,155.48,155.47,38.8476]
[1748993035260,4.77774835,155.48,155.47,32.42]
[1748993035467,9.55549788,155.48,155.47,38.8477]
[1748993035664,4.77774903,155.48,155.47,38.8477]
[1748993035960,4.77774903,155.48,155.47,46.27434254]
[1748993036255,4.77774903,155.48,155.47,54.24902274]
[1748993036461,9.5518189,155.48,155.47,54.24902274]
[1748993036661,9.55179543,155.48,155.47,54.24902274]
[1748993036862,9.55185569,155.48,155.47,54.24902274]
[1748993037058,4.77774903,155.48,155.47,54.24902274]
[1748993037465,9.55256306,155.48,155.47,54.24902274]
[1748993037764,4.77774903,155.48,155.47,54.24902274]
[1748993037954,9.55334088,155.48,155.47,54.24902274]
[1748993038151,9.5535217,155.48,155.47,54.24902274]
[1748993038358,4.77774903,155.48,155.47,54.24902274]
[1748993039059,9.55437653,155.48,155.47,54.24902274]
[1748993039369,9.55414545,155.48,155.47,54.24902274]
[1748993039663,4.77774903,155.48,155.47,54.24902274]
[1748993040162,9.55391059,155.48,155.47,54.24902274]
[1748993040365,4.903e-05,155.48,155.47,54.24902274]
[1748993046667,0.04724582,155.51,155.49,6.4268]
[1748993046873,39.82664254,155.6,155.53,7.42664254]
[1748993047172,6.4235,155.57,155.54,6.4246]
[1748993047361,7.42664254,155.58,155.52,32.4]
[1748993047563,32.4,155.6,155.52,32.4]
[1748993047564,7.42664254,155.56,155.52,32.4]
[1748993047766,7.47187802,155.56,155.52,32.44599863]
[1748993047974,7.47187802,155.56,155.52,0.04599863]
[1748993048566,6.4246,155.55,155.52,6.47119863]
[1748993048765,0.04523548,155.56,155.52,0.04599863]
[1748993049068,6.4246,155.55,155.52,6.47129863]
[1748993049770,0.04523548,155.56,155.54,6.4246]
[1748993049971,0.04523548,155.56,155.52,0.04599863]
[1748993050172,0.04523548,155.56,155.54,6.4245]
[1748993051264,6.46913548,155.56,155.53,6.425]
[1748993054271,6.46913548,155.56,155.53,12.41491671]
[1748993056365,0.04523548,155.56,155.53,5.98991671]
[1748993057073,6.4248,155.54,155.53,5.98991671]
[1748993057576,0.04523548,155.56,155.52,6.03591534]
[1748993057771,0.04523548,155.56,155.52,12.47223614]
[1748993058075,0.04523548,155.56,155.52,6.04673614]
[1748993058673,4.59809805,155.55,155.52,6.04673614]
[1748993058862,0.04523548,155.56,155.52,6.04673614]
[1748993058863,4.59809616,155.54,155.52,6.04673614]
[1748993059063,7.47187802,155.56,155.52,6.04673614]
[1748993059269,4.59806749,155.55,155.52,6.04673614]
[1748993059470,7.47187802,155.56,155.52,6.04673614]
[1748993059870,6.425,155.54,155.53,6.00073751]
[1748993060569,11.0232822,155.54,155.53,6.00073751]
[1748993060764,6.4252,155.53,155.52,6.04673614]
[1748993060969,6.4252,155.53,155.52,0.04599863]
[1748993061176,11.01268345,155.53,155.52,0.04599863]
[1748993061372,11.01270629,155.53,155.52,0.04599863]
[1748993061677,6.4252,155.53,155.52,0.04599863]
[1748993062181,6.426,155.51,155.5,6.0041311]
[1748993062569,4.58497416,155.51,155.5,6.0041311]
[1748993062782,4.58497408,155.51,155.5,6.0041311]
[1748993062967,4.58500291,155.51,155.5,6.0041311]
[1748993063167,6.467581,155.52,155.49,14.4554777]
[1748993063381,6.467581,155.52,155.51,6.00494425]
[1748993063775,11.05279076,155.52,155.51,6.00494425]
[1748993063979,11.05288918,155.52,155.51,6.00494425]
[1748993064178,6.467581,155.52,155.51,6.00494425]
[1748993064579,6.467581,155.52,155.5,14.41092057]
[1748993064978,4.58318866,155.51,155.5,6.4263]
[1748993065283,6.467581,155.52,155.51,6.426]
[1748993065284,0.041681,155.52,155.51,6.426]
[1748993065482,0.041681,155.52,155.51,14.41062057]
[1748993065883,0.041681,155.52,155.5,46.81102057]
[1748993066079,0.041681,155.52,155.5,40.38462057]
[1748993066476,0.041681,155.52,155.51,14.41062057]
[1748993068080,0.041681,155.52,155.51,6.426]
[1748993070585,0.041681,155.52,155.51,14.43361547]
[1748993071888,0.041681,155.52,155.51,13.85264254]
[1748993072387,4.62122828,155.52,155.51,13.85264254]
[1748993072584,4.62122828,155.52,155.51,25.81466284]
[1748993072794,0.041681,155.52,155.51,25.81466284]
[1748993074389,0.041681,155.52,155.51,13.85264254]
[1748993074592,4.62087654,155.52,155.51,13.85264254]
[1748993075089,0.041681,155.52,155.51,25.81466284]
[1748993075289,0.041681,155.52,155.51,13.85264254]
[1748993075589,4.6207769,155.52,155.51,13.85264254]
[1748993075788,0.041681,155.52,155.51,13.85264254]
[1748993076184,0.041681,155.52,155.51,25.81466284]
[1748993076387,0.041681,155.52,155.51,13.85264254]
[1748993076692,2.2079,155.61,155.51,19.38866284]
[1748993076890,2.2079,155.61,155.55,13.42950875]
[1748993076891,4.59467748,155.6,155.55,13.42950875]
[1748993077188,2.2079,155.61,155.55,6.00286621]
[1748993077393,12.02147644,155.6,155.55,6.00310722]
[1748993077593,0.04621203,155.59,155.56,6.04376896]
[1748993078089,4.59936749,155.58,155.56,6.04376896]
[1748993078291,0.04621203,155.59,155.56,6.04376896]
[1748993078687,6.4235,155.57,155.56,0.04066174]
[1748993079894,11.02269831,155.57,155.56,0.04066174]
[1748993080091,6.4235,155.57,155.56,0.04066174]
[1748993080990,11.02757863,155.57,155.56,0.04066174]
[1748993081292,11.029349,155.57,155.56,0.04066174]
[1748993081494,11.02935671,155.57,155.56,0.04066174]
[1748993081692,6.4235,155.57,155.56,0.04066174]
[1748993082396,11.02962741,155.57,155.56,0.04066174]
[1748993082591,6.4235,155.57,155.56,0.04066174]
[1748993082988,11.0295112,155.57,155.56,0.04066174]
[1748993083392,11.02909733,155.57,155.56,0.04066174]
[1748993083599,11.02892124,155.57,155.56,0.04066174]
[1748993083794,15.63405465,155.57,155.56,0.04066174]
[1748993083988,11.02892124,155.57,155.56,0.04066174]
[1748993084392,15.6341091,155.57,155.56,0.04066174]
[1748993084687,15.63402435,155.57,155.56,0.04066174]
[1748993084892,11.02892124,155.57,155.56,0.04066174]
[1748993085285,15.63345426,155.57,155.56,0.04066174]
[1748993085486,11.02892124,155.57,155.56,0.04066174]
[1748993085694,15.63343294,155.57,155.56,0.04066174]
[1748993085897,15.63340646,155.57,155.56,0.04066174]
[1748993086095,11.02892124,155.57,155.56,0.04066174]
[1748993086503,15.63341257,155.57,155.56,0.04066174]
[1748993087001,11.02892124,155.57,155.56,0.04066174]
[1748993087495,15.63379923,155.57,155.56,0.04066174]
[1748993087699,15.63376221,155.57,155.56,0.04066174]
[1748993087901,15.633791,155.57,155.56,0.04066174]
[1748993088096,11.02892124,155.57,155.56,0.04066174]
[1748993088495,15.63375997,155.57,155.56,0.04066174]
[1748993088697,11.02892124,155.57,155.56,0.04066174]
[1748993089896,15.63287737,155.57,155.56,0.04066174]
[1748993090101,11.02892124,155.57,155.56,0.04066174]
[1748993090298,18.45556378,155.57,155.56,6.174e-05]
[1748993090502,18.45556378,155.57,155.52,6.00460147]
[1748993090503,16.63457676,155.57,155.52,6.00460147]
[1748993090697,7.42664254,155.55,155.52,6.00460147]
[1748993090899,6.4252,155.53,155.52,6.00460147]
[1748993091203,4.5923535,155.53,155.51,6.00460147]
[1748993091398,4.5923535,155.53,155.5,0.04367214]
[1748993091399,12.01899604,155.53,155.5,0.04367214]
[1748993091600,4.59178032,155.52,155.5,0.04367214]
[1748993091804,7.42664254,155.53,155.5,0.04367214]
[1748993091993,6.426,155.51,155.5,0.04367214]
[1748993092393,11.01818154,155.51,155.5,0.04367214]
[1748993092595,6.426,155.51,155.5,0.04367214]
[1748993092997,11.01831837,155.51,155.5,0.04367214]
[1748993093203,6.426,155.51,155.5,0.04367214]
[1748993093393,11.01843577,155.51,155.5,0.04367214]
[1748993093598,6.426,155.51,155.5,0.04367214]
[1748993094195,11.01874189,155.51,155.5,0.04367214]
[1748993094404,6.426,155.51,155.5,0.04367214]
[1748993094603,11.01876076,155.51,155.5,0.04367214]
[1748993094804,6.426,155.51,155.5,0.04367214]
[1748993095308,11.0186973,155.51,155.5,0.04367214]
[1748993095505,11.01876251,155.51,155.5,0.04367214]
[1748993095704,6.426,155.51,155.5,0.04367214]
[1748993095904,11.01880427,155.51,155.5,0.04367214]
[1748993096106,11.01886165,155.51,155.5,0.04367214]
[1748993096302,11.01883102,155.51,155.5,0.04367214]
[1748993096503,6.426,155.51,155.5,0.04367214]
[1748993102616,7.42664254,155.51,155.45,32.4]
[1748993102811,7.42664254,155.51,155.42,11.9620203]
[1748993102812,7.42664254,155.47,155.43,8.00382161]
[1748993103006,7.42664254,155.47,155.42,32.4]
[1748993103209,7.42664254,155.47,155.43,6.4293]
[1748993103408,7.42664254,155.47,155.42,32.4]
[1748993103608,7.42664254,155.47,155.43,0.04406625]
[1748993103609,0.04210093,155.46,155.43,0.04406625]
[1748993104112,6.4287,155.45,155.43,0.04406625]
[1748993104311,0.04210093,155.46,155.43,6.47316625]
[1748993104518,0.04210093,155.46,155.43,0.04406625]
[1748993104713,6.4289,155.44,155.43,0.04406625]
[1748993115816,7.42664254,155.45,155.43,6.47336625]
[1748993115817,6.4286,155.45,155.43,6.47336625]
[1748993116314,6.4286,155.45,155.43,0.04406625]
[1748993116823,6.4289,155.44,155.43,0.04406625]
[1748993117419,6.4286,155.45,155.43,0.04406625]
[1748993119913,6.4289,155.44,155.43,0.04406625]
[1748993121020,0.04210093,155.46,155.43,0.04406625]
[1748993121322,0.04210093,155.46,155.44,7.42664254]
[1748993121525,0.04210093,155.46,155.45,13.85514254]
[1748993122927,836.35165564,155.52,155.45,7.42664254]
[1748993122928,156.27165564,155.52,155.45,7.42664254]
[1748993123125,156.27165564,155.52,155.48,7.42664254]
[1748993123425,156.27165564,155.52,155.49,6.4267]
[1748993123626,162.69745564,155.52,155.49,6.4267]
[1748993123824,156.31409755,155.52,155.49,0.0468996]
[1748993124324,7.42664254,155.5,155.49,0.0468996]
[1748993124823,13.85304254,155.5,155.49,0.0468996]
[1748993126928,13.85304254,155.5,155.43,32.4]
[1748993126929,7.42664254,155.5,155.43,38.8291]
[1748993127321,2.2496,155.51,155.43,32.4]
[1748993127522,7.42664254,155.48,155.43,32.4]
[1748993127929,6.4288,155.45,155.44,0.04781213]
[1748993131733,132.18664254,155.46,155.37,564.65084254]
[1748993131934,7.42664254,155.45,155.39,7.42664254]
[1748993132234,6.4287,155.45,155.39,7.42664254]
[1748993132435,7.42664254,155.49,155.41,7.42664254]
[1748993132634,7.42664254,155.49,155.43,7.42664254]
[1748993132840,6.46901711,155.48,155.45,6.4282]
[1748993133631,0.04161711,155.48,155.45,7.42664254]
[1748993135141,0.04161711,155.48,155.46,6.4278]
[1748993137437,6.4277,155.47,155.44,6.47199447]
[1748993137644,0.04161711,155.48,155.44,0.04329447]
[1748993138142,0.04161711,155.48,155.45,6.4281]
[1748993138738,0.04161711,155.48,155.46,6.4281]
[1748993138945,0.04161711,155.48,155.44,0.04329447]
[1748993139643,0.04161711,155.48,155.45,6.4284]
[1748993139942,0.04161711,155.48,155.44,0.04329447]
[1748993140341,6.46891711,155.48,155.44,0.04329447]
[1748993140641,0.04161711,155.48,155.44,0.04329447]
[1748993141238,6.46911711,155.48,155.45,6.4283]
[1748993141445,6.46911711,155.48,155.44,0.04329447]
[1748993141446,0.04161711,155.48,155.44,0.04329447]
[1748993141646,6.4282,155.46,155.44,0.04329447]
[1748993141846,0.04161711,155.48,155.44,0.04329447]
[1748993142440,6.4284,155.46,155.44,0.04329447]
[1748993142837,7.42664254,155.47,155.44,0.04329447]
[1748993143038,6.4283,155.46,155.44,0.04329447]
[1748993143238,0.04161711,155.48,155.44,0.04329447]
[1748993143645,4.56707444,155.47,155.45,6.4285]
[1748993143841,4.56725621,155.46,155.45,6.4285]
[1748993144047,6.46921711,155.48,155.45,6.4285]
[1748993145554,6.4278,155.47,155.45,6.4285]
[1748993145951,6.46901711,155.48,155.46,6.428]
[1748993146147,6.46901711,155.48,155.44,0.04329447]
[1748993146945,6.46901711,155.48,155.45,6.4283]
[1748993148056,6.4277,155.47,155.45,6.4283]
[1748993149767,6.4284,155.46,155.44,0.04329447]
[1748993149964,0.04161711,155.48,155.44,0.04329447]
[1748993151055,6.4279,155.47,155.44,0.04329447]
[1748993151255,0.04161711,155.48,155.44,0.04329447]
[1748993151466,6.4281,155.46,155.44,12.4766651]
[1748993152164,6.4281,155.46,155.44,6.0479651]
[1748993154871,6.4281,155.46,155.44,0.04329447]
[1748993155175,6.4281,155.46,155.44,6.05050322]
[1748993155562,6.4281,155.46,155.45,6.00720875]
[1748993155971,6.4277,155.47,155.45,6.00720875]
[1748993156176,0.04161711,155.48,155.44,6.05050322]
[1748993156869,0.04161711,155.48,155.44,0.04329447]
[1748993157066,6.4285,155.45,155.44,6.05050322]
[1748993157465,6.4285,155.45,155.44,0.04329447]
[1748993163076,13.85514254,155.45,155.44,0.04329447]
[1748993163277,6.4297,155.42,155.41,6.0090719]
[1748993165176,6.4301,155.41,155.4,0.04899062]
[1748993165982,13.85674254,155.41,155.4,0.04899062]
[1748993166178,6.4318,155.37,155.36,6.00692326]
[1748993166476,32.44197346,155.43,155.31,6.00692326]
[1748993166477,32.4,155.39,155.31,6.00692326]
[1748993166679,6.4329,155.35,155.31,6.00692326]
[1748993166882,6.4329,155.35,155.32,6.00692326]
[1748993167177,0.04181444,155.35,155.32,6.05631524]
[1748993167475,6.47471444,155.35,155.32,0.04939198]
[1748993167678,6.47471444,155.35,155.32,6.05631524]
[1748993167982,7.46845698,155.35,155.32,0.04939198]
[1748993168477,0.04181444,155.35,155.32,0.04939198]
[1748993169283,6.4334,155.33,155.32,0.04939198]
[1748993170679,6.4334,155.33,155.32,0.04939198]
[1748993171474,0.04181444,155.35,155.32,0.04939198]
[1748993172082,6.4334,155.33,155.32,0.04939198]
[1748993178783,0.04181444,155.35,155.32,0.04939198]
[1748993178987,561.39971164,155.46,155.34,7.42664254]
[1748993178988,2.0589,155.42,155.34,7.42664254]
[1748993179176,7.42664254,155.41,155.34,7.42664254]
[1748993179377,6.4312,155.39,155.33,6.3236]
[1748993179583,7.42664254,155.41,155.34,7.42664254]
[1748993179983,6.432,155.37,155.36,0.04320229]
[1748993180188,0.04859342,155.39,155.36,0.04320229]
[1748993180392,6.4316,155.38,155.36,0.04320229]
[1748993182588,0.04859342,155.39,155.36,0.04320229]
[1748993184192,6.47979342,155.39,155.36,6.47510229]
[1748993188189,6.47979342,155.39,155.37,6.4318]
[1748993188696,0.04859342,155.39,155.37,6.4318]
[1748993188899,0.04859342,155.39,155.36,0.04320229]
[1748993189597,6.47979342,155.39,155.36,0.04320229]
[1748993190189,6.47979342,155.39,155.36,6.47540229]
[1748993190391,6.4314,155.38,155.36,0.04320229]
[1748993190591,0.04859342,155.39,155.36,0.04320229]
[1748993191898,2.1565,155.45,155.38,7.42664254]
[1748993192101,595.30664254,155.46,155.4,7.42664254]
[1748993192407,7.42664254,155.44,155.38,13.85774254]
[1748993192898,7.42664254,155.44,155.39,6.47230454]
[1748993192899,6.4302,155.41,155.39,6.47230454]
[1748993193100,6.4302,155.41,155.39,0.04130454]
[1748993193296,0.04758388,155.43,155.39,0.04130454]
[1748993193899,6.4303,155.41,155.39,0.04130454]
[1748993194899,6.4298,155.42,155.39,6.47220454]